bitfinex/quotes_ETHUSD_20241123
["timestamp","ask_amount","ask_price","bid_price","bid_amount"]
[1732397429923,5.85075,3418.4,3417.8,0.7658]
[1732397430110,2.92545,3418.3,3417.8,0.7658]
[1732397431504,2.92559,3418.2,3417.8,0.7658]
[1732397431707,2.9256,3418.1,3417.8,0.7658]
[1732397432113,2.92543,3418.3,3417.8,0.7658]
[1732397432352,2.92552,3418.2,3417.8,0.7658]
[1732397433308,2.9256,3418.1,3417.8,0.7658]
[1732397436008,2.92543,3418.3,3417.8,0.7658]
[1732397436214,2.92557,3418.2,3417.8,0.7658]
[1732397436627,2.92562,3418.1,3417.8,0.7658]
[1732397437450,2.92473,3419.2,3417.9,1.17029]
[1732397437618,2.9255,3418.3,3417.7,0.7523]
[1732397437805,5.80007377,3419.4,3417.9,1.1703]
[1732397438007,2.92518,3418.6,3418.0,0.7523]
[1732397438457,2.92518,3418.6,3418.0,1.92257]
[1732397438814,2.92518,3418.6,3418.0,0.7523]
[1732397439036,2.92526,3418.5,3418.0,0.7523]
[1732397439242,2.92518,3418.6,3418.0,0.7523]
[1732397439410,2.925,3418.8,3418.0,0.973748]
[1732397439611,2.925,3418.8,3418.0,2.144018]
[1732397439612,2.92518,3418.6,3418.0,2.144018]
[1732397439836,2.92518,3418.6,3418.0,1.92257]
[1732397440037,2.92526,3418.5,3418.1,0.7523]
[1732397441712,2.92539,3418.4,3418.1,0.7523]
[1732397442213,2.92526,3418.5,3418.1,0.7523]
[1732397443024,2.92466,3419.2,3417.7,1.46227]
[1732397443025,2.92551,3418.2,3417.7,0.7523]
[1732397444776,2.92497,3418.9,3417.7,0.7523]
[1732397444777,3.0,3418.8,3417.7,0.7523]
[1732397444927,2.92574,3418.0,3417.5,0.7523]
[1732397447217,2.92555,3418.2,3417.5,0.7523]
[1732397447413,2.92559,3418.2,3417.5,1.92274]
[1732397447612,2.92562,3418.1,3417.6,0.25221577]
[1732397447815,2.92562,3418.1,3417.5,1.92274]
[1732397448354,2.9257,3418.0,3417.5,0.7523]
[1732397448553,2.92584,3417.9,3417.5,1.14783785]
[1732397448754,2.92584,3417.9,3417.5,0.7523]
[1732397449765,2.92562,3418.1,3417.5,0.7523]
[1732397450060,2.92575,3418.0,3417.5,0.7523]
[1732397450824,2.92578,3417.9,3417.5,0.7523]
[1732397451128,2.92602,3417.6,3417.5,0.7523]
[1732397451335,2.9264,3417.2,3417.0,0.775]
[1732397451563,2.92645,3417.1,3417.0,0.775]
[1732397451767,2.92557,3418.2,3416.2,0.87816]
[1732397451768,2.92659,3417.0,3416.7,0.775]
[1732397452128,2.92667,3416.9,3416.7,0.775]
[1732397452632,2.92637,3417.2,3416.3,0.2919]
[1732397452835,2.92695,3416.6,3416.3,0.2919]
[1732397453467,2.92695,3416.6,3416.2,0.8019]
[1732397454430,2.92682,3416.7,3416.2,0.8019]
[1732397455830,2.92656,3417.0,3416.2,3.8019]
[1732397456031,2.92656,3417.0,3416.3,0.87813]
[1732397456229,2.92673,3416.8,3416.2,0.8019]
[1732397456457,2.92656,3417.0,3416.3,0.22823606]
[1732397456655,3.0,3417.8,3416.3,0.25750596]
[1732397456844,2.9266,3417.0,3416.3,0.87812]
[1732397457248,3.58018751,3417.8,3416.2,3.8019]
[1732397457579,2.92681,3416.7,3416.2,0.8019]
[1732397459484,2.92712,3416.4,3416.2,0.8019]
[1732397460274,2.92695,3416.6,3416.2,0.8019]
[1732397460579,2.92662,3417.0,3416.2,0.8019]
[1732397460744,2.92602,3417.6,3416.7,0.8019]
[1732397460931,5.72735508,3418.3,3417.1,0.8019]
[1732397461133,2.92578,3417.9,3417.1,0.8019]
[1732397461331,0.292578,3417.8,3417.3,0.87788]
[1732397461534,2.80187508,3418.7,3417.1,0.8019]
[1732397461780,2.92585,3417.8,3417.1,1.67982]
[1732397461977,2.92585,3417.8,3417.1,2.26701037]
[1732397462540,2.92577,3417.9,3417.1,2.26701037]
[1732397462922,2.9259,3417.8,3417.1,1.38909037]
[1732397463075,2.9259,3417.8,3417.1,2.26702037]
[1732397464192,3.52612726,3418.4,3417.1,2.26702037]
[1732397464193,2.92595,3417.7,3417.1,2.26702037]
[1732397464490,2.9258,3417.9,3417.1,1.38909037]
[1732397464692,2.92595,3417.7,3417.1,2.26700037]
[1732397465188,2.9256,3418.1,3417.2,0.8779]
[1732397465389,2.9256,3418.1,3417.2,1.19239804]
[1732397465552,2.92581,3417.9,3417.4,0.8019]
[1732397465948,2.92537,3418.4,3417.8,0.8019]
[1732397466263,2.92511,3418.7,3417.8,1.67963]
[1732397466471,2.92531,3418.5,3417.9,1.045693]
[1732397466723,2.92531,3418.5,3417.9,0.87773]
[1732397467087,2.92515,3418.7,3417.9,0.87773]
[1732397467409,2.92491,3418.9,3417.8,0.8019]
[1732397467612,2.92519,3418.6,3418.0,0.8777]
[1732397467968,2.92488,3419.0,3418.2,0.7775]
[1732397468467,2.92501,3418.8,3418.2,0.7775]
[1732397469812,2.92509,3418.7,3418.2,0.7775]
[1732397471071,2.92526,3418.5,3418.2,0.7775]
[1732397471580,2.92509,3418.7,3418.2,0.7775]
[1732397472320,2.92491,3418.9,3418.2,1.65513]
[1732397472684,2.92491,3418.9,3418.3,0.87762]
[1732397473011,0.302439,3419.5,3418.5,0.818]
[1732397473223,5.8493,3419.3,3418.5,1.69555]
[1732397473392,2.92467,3419.2,3418.5,0.818]
[1732397473887,2.92467,3419.2,3418.5,1.69557]
[1732397474083,2.92467,3419.2,3418.6,0.257315]
[1732397474318,2.92475,3419.1,3418.6,0.257315]
[1732397474614,0.57260651,3419.7,3418.5,0.818]
[1732397474615,2.92493,3418.9,3418.5,0.818]
[1732397474819,2.92476,3419.1,3418.5,0.818]
[1732397474991,2.92476,3419.1,3418.5,1.69557]
[1732397475191,2.92476,3419.1,3418.5,1.865127]
[1732397476513,2.92423,3419.7,3418.5,0.987557]
[1732397476689,2.92476,3419.1,3418.5,0.818]
[1732397477387,2.80187508,3419.9,3418.5,0.818]
[1732397477587,2.80187508,3420.3,3418.9,0.818]
[1732397477960,2.92442,3419.5,3418.9,0.818]
[1732397478118,2.92442,3419.5,3418.9,1.69545]
[1732397478617,5.72565508,3420.3,3418.9,0.818]
[1732397478778,2.92425,3419.7,3419.0,0.87743]
[1732397479197,2.97891765,3419.7,3419.0,0.87743]
[1732397479397,2.97891765,3419.7,3419.0,1.134722]
[1732397479398,2.92433,3419.6,3419.0,1.134722]
[1732397479596,2.92442,3419.5,3419.0,0.257292]
[1732397479986,2.92429,3419.7,3419.1,0.818]
[1732397480185,2.92429,3419.7,3419.1,1.69542]
[1732397480498,2.97895765,3419.7,3419.1,1.69542]
[1732397480815,0.05466765,3419.7,3419.1,1.075291]
[1732397480974,0.05466765,3419.7,3419.2,0.87739]
[1732397481177,5.80187508,3420.4,3419.1,0.818]
[1732397481421,2.9243,3419.7,3419.1,0.818]
[1732397481810,0.05490479,3419.6,3419.1,0.818]
[1732397482227,0.05490479,3419.6,3419.1,1.69542]
[1732397482408,0.05490479,3419.6,3419.2,0.87739]
[1732397482743,2.92416,3419.8,3419.2,0.87739]
[1732397483031,0.05481843,3419.5,3419.2,0.87739]
[1732397483346,0.05473206,3419.4,3419.2,0.87739]
[1732397483547,2.92416,3419.8,3419.2,0.87739]
[1732397483694,0.05473206,3419.4,3419.2,0.87739]
[1732397483897,2.92416,3419.8,3419.2,1.134674]
[1732397484131,0.05499115,3419.7,3418.8,0.818]
[1732397484330,2.92373,3420.3,3419.7,0.818]
[1732397484499,2.92356,3420.5,3419.7,0.818]
[1732397484705,0.04328306,3420.2,3419.9,0.818]
[1732397484939,2.92369,3420.4,3419.9,0.818]
[1732397485105,0.04321591,3420.1,3419.9,0.818]
[1732397485302,2.92378,3420.3,3419.9,0.818]
[1732397485507,0.04328306,3420.2,3419.9,0.818]
[1732397485936,2.96712306,3420.2,3419.9,0.818]
[1732397486098,0.04328306,3420.2,3419.9,0.818]
[1732397486296,2.92397,3420.0,3419.9,0.818]
[1732397486492,0.04861226,3420.0,3419.5,0.818]
[1732397486735,2.92431,3419.6,3419.5,0.818]
[1732397486938,2.92448,3419.5,3419.0,0.818]
[1732397487297,0.0481589,3419.4,3419.0,0.818]
[1732397487834,0.0481589,3419.4,3419.2,0.8279]
[1732397488019,0.0481589,3419.4,3419.3,0.99541446]
[1732397488227,2.92417,3419.8,3419.3,0.8279]
[1732397488726,0.0483856,3419.7,3419.3,0.8279]
[1732397488925,2.92417,3419.8,3419.3,1.115363]
[1732397489262,0.04831004,3419.6,3419.3,1.992723]
[1732397489420,0.0483856,3419.7,3419.3,1.992723]
[1732397489620,0.04823447,3419.5,3419.4,0.1992723]
[1732397489861,2.92406,3419.9,3419.4,0.1992723]
[1732397490160,2.92406,3419.9,3419.3,1.992723]
[1732397490366,0.04846116,3419.8,3419.3,1.992723]
[1732397490861,0.04846116,3419.8,3419.3,1.115363]
[1732397491049,2.92426,3419.7,3419.3,0.8279]
[1732397491253,2.92448,3419.4,3419.3,0.8279]
[1732397491573,2.9726389,3419.4,3419.3,0.8279]
[1732397493472,2.9248,3419.1,3419.0,0.8202]
[1732397493771,2.97273216,3419.1,3419.0,0.8202]
[1732397495565,0.04793216,3419.1,3419.0,0.8202]
[1732397495728,2.92462,3419.3,3419.0,0.8202]
[1732397495930,0.05477961,3419.1,3419.0,0.8202]
[1732397496125,3.0,3420.2,3419.0,1.04837]
[1732397496322,0.05475546,3419.1,3419.0,1.04837]
[1732397496529,2.92474,3419.1,3419.0,0.8202]
[1732397496788,2.97949546,3419.1,3419.0,0.8202]
[1732397497359,2.97949546,3419.1,3418.7,0.58397995]
[1732397497360,0.05475546,3419.1,3418.7,0.8202]
[1732397497562,2.925,3418.8,3418.7,0.8202]
[1732397499987,2.92476,3419.1,3418.7,0.8202]
[1732397500149,2.92357,3420.5,3418.7,0.8202]
[1732397500150,2.92442,3419.5,3418.7,0.8202]
[1732397500349,0.04791103,3419.1,3418.8,0.8202]
[1732397500547,2.92458,3419.3,3418.8,0.8202]
[1732397500861,0.04791103,3419.1,3419.0,0.8202]
[1732397501389,2.92458,3419.3,3419.0,0.8202]
[1732397501594,0.04791103,3419.1,3419.0,0.8202]
[1732397501798,2.92466,3419.2,3419.0,0.8202]
[1732397501999,0.04791103,3419.1,3419.0,0.8202]
[1732397502210,2.97265103,3419.1,3419.0,0.8202]
[1732397503398,0.04791103,3419.1,3419.0,0.8202]
[1732397503760,2.97265103,3419.1,3419.0,0.8202]
[1732397504207,0.04791103,3419.1,3419.0,0.8202]
[1732397504393,2.92446,3419.5,3419.0,0.8202]
[1732397504580,0.05475546,3419.1,3419.0,0.8202]
[1732397504780,2.92449,3419.4,3419.0,0.8202]
[1732397504978,0.05475546,3419.1,3419.0,0.8202]
[1732397505188,2.92417,3419.8,3419.0,0.8202]
[1732397505401,0.05475546,3419.1,3419.0,1.69764]
[1732397505713,2.92434,3419.6,3419.1,0.8202]
[1732397507118,2.92417,3419.8,3419.2,1.164085]
[1732397507418,2.92427,3419.7,3419.2,0.286695]
[1732397508082,2.92435,3419.6,3419.2,0.286695]
[1732397508594,2.92408,3419.9,3419.2,0.286695]
[1732397508796,2.92426,3419.7,3419.2,0.286695]
[1732397509415,2.92431,3419.6,3419.2,0.286695]
[1732397509701,2.92431,3419.6,3419.3,0.2919]
[1732397512240,2.92414,3419.8,3419.3,0.2919]
[1732397512455,0.1514054,3420.7,3419.4,0.7908]
[1732397512746,2.92404,3420.0,3419.4,0.7908]
[1732397513048,2.92417,3419.8,3419.4,0.7908]
[1732397513397,2.92404,3420.0,3419.4,0.7908]
[1732397513596,2.92404,3420.0,3419.4,1.07247819]
[1732397514040,2.92415,3419.8,3419.4,1.07247819]
[1732397514204,2.92404,3420.0,3419.4,1.07247819]
[1732397515161,2.92383,3420.2,3419.4,1.07247819]
[1732397515162,2.97959182,3419.9,3419.4,1.07247819]
[1732397515323,0.05553182,3419.9,3419.4,1.07247819]
[1732397515521,2.92392,3420.1,3419.4,0.7908]
[1732397515736,0.05561816,3420.0,3419.4,1.66813]
[1732397516041,0.05561816,3420.0,3419.5,0.28374]
[1732397516208,0.05561816,3420.0,3419.5,1.16105]
[1732397516409,2.97959816,3420.0,3419.5,0.28374]
[1732397516651,2.97959816,3420.0,3419.4,0.7908]
[1732397516858,2.97959816,3420.0,3419.4,1.66814]
[1732397519624,0.05561816,3420.0,3419.5,0.87732]
[1732397519823,2.9239,3420.1,3419.5,0.87732]
[1732397520026,0.05553182,3419.9,3419.5,0.87732]
[1732397520253,2.9238,3420.2,3419.4,0.7908]
[1732397520461,0.05544547,3419.8,3419.4,1.3439934]
[1732397520762,0.05535912,3419.7,3419.4,0.7908]
[1732397520962,2.92412,3419.9,3419.4,1.4317344]
[1732397521135,0.05527276,3419.6,3419.4,1.4317344]
[1732397521336,2.92412,3419.9,3419.4,1.4317344]
[1732397521552,0.05544547,3419.8,3419.4,2.3090744]
[1732397522124,2.924,3420.0,3419.4,1.66814]
[1732397522359,0.05553182,3419.9,3419.4,1.66814]
[1732397522543,2.97960182,3419.9,3419.4,0.7908]
[1732397522943,2.97960182,3419.9,3419.4,1.1317354]
[1732397523975,0.05553182,3419.9,3419.4,1.1317354]
[1732397524181,2.92389,3420.1,3419.4,1.1317354]
[1732397524467,0.05544547,3419.8,3419.4,1.1317354]
[1732397524620,2.92425,3419.7,3419.4,1.1317354]
[1732397524825,2.92439,3419.6,3419.4,0.7908]
[1732397525068,2.9244,3419.5,3419.4,0.7908]
[1732397525440,2.9795864,3419.5,3419.4,0.7908]
[1732397526350,2.92466,3419.2,3419.1,0.7948]
[1732397526554,0.0551864,3419.5,3419.1,0.7948]
[1732397526555,2.92465,3419.3,3419.1,0.7948]
[1732397526777,0.05493478,3419.2,3419.1,0.7948]
[1732397526991,2.92465,3419.3,3419.1,0.7948]
[1732397527187,0.05493478,3419.2,3419.1,0.7948]
[1732397527391,2.92465,3419.3,3419.1,0.7948]
[1732397527593,0.05493478,3419.2,3419.1,0.7948]
[1732397527754,2.92465,3419.3,3419.1,0.7948]
[1732397527949,0.05493478,3419.2,3419.1,0.7948]
[1732397528150,2.92424,3419.7,3419.1,1.23282177]
[1732397528365,0.05493478,3419.2,3419.1,1.23282177]
[1732397528660,2.92441,3419.5,3419.1,0.7948]
[1732397528875,0.05493478,3419.2,3419.1,0.7948]
[1732397529087,2.92441,3419.5,3419.1,0.7948]
[1732397529264,0.05493478,3419.2,3419.1,0.7948]
[1732397529598,0.05493478,3419.2,3419.1,1.34975877]
[1732397529798,2.92441,3419.5,3419.1,1.34975877]
[1732397530093,0.05510753,3419.4,3419.1,1.34975877]
[1732397530799,4.03905145,3420.7,3419.2,0.767]
[1732397530954,2.92424,3419.7,3419.2,0.767]
[1732397531295,0.05528026,3419.6,3419.2,0.767]
[1732397531890,2.92416,3419.8,3419.2,0.767]
[1732397532082,0.0551939,3419.5,3419.2,0.767]
[1732397532253,2.92416,3419.8,3419.2,1.64439]
[1732397532465,0.05510753,3419.4,3419.2,0.767]
[1732397532659,2.92429,3419.7,3419.2,0.931444]
[1732397532901,0.05502115,3419.3,3419.2,0.931444]
[1732397533084,2.92429,3419.7,3419.2,0.931444]
[1732397533257,0.05502115,3419.3,3419.2,0.767]
[1732397533452,2.92454,3419.4,3419.2,0.767]
[1732397533658,0.05502115,3419.3,3419.2,0.767]
[1732397534794,2.9245,3419.4,3419.2,0.767]
[1732397534999,0.05502115,3419.3,3419.2,0.767]
[1732397535397,3.0,3419.7,3419.2,1.64439]
[1732397535585,0.05528026,3419.6,3419.2,1.64439]
[1732397535781,0.05528026,3419.6,3419.3,0.87737]
[1732397536015,2.92416,3419.8,3419.3,0.7997]
[1732397536168,0.0551939,3419.5,3419.3,0.7997]
[1732397536374,2.92407,3419.9,3419.3,0.99292495]
[1732397536574,0.05539718,3419.8,3419.3,0.99292495]
[1732397536774,2.92415,3419.8,3419.3,0.99292495]
[1732397537012,0.05531083,3419.7,3419.4,0.1870295]
[1732397537197,2.97954083,3419.7,3419.4,0.1870295]
[1732397537919,0.05531083,3419.7,3419.6,1.67699]
[1732397538318,5.72456508,3421.5,3420.0,0.87719]
[1732397538319,2.92346,3420.6,3420.0,0.87719]
[1732397538614,2.92331,3420.8,3420.1,0.7997]
[1732397538615,0.04359574,3420.5,3420.1,0.7997]
[1732397538819,3.0747954,3420.7,3420.1,0.7997]
[1732397539021,0.04352861,3420.4,3420.1,0.7997]
[1732397539172,0.1514054,3420.7,3420.1,1.67686]
[1732397539513,0.04351636,3420.3,3420.2,0.7997]
[1732397539723,3.0748154,3420.7,3420.2,0.7997]
[1732397540008,3.67461094,3420.7,3420.2,0.7997]
[1732397540216,0.04371777,3420.6,3420.2,0.7997]
[1732397540587,0.04371777,3420.6,3420.3,0.7997]
[1732397540771,0.04371777,3420.6,3420.4,0.87708]
[1732397540972,0.04371777,3420.6,3420.5,0.7997]
[1732397541957,0.04371777,3420.6,3420.5,1.67676]
[1732397542241,0.1514054,3420.7,3420.5,1.36738488]
[1732397542415,0.1514054,3420.7,3420.6,1.70596163]
[1732397543828,0.1514054,3420.7,3420.6,0.7997]
[1732397545236,0.19520474,3420.7,3420.6,0.7997]
[1732397547290,0.19520474,3420.7,3420.5,0.58687068]
[1732397548918,0.1514054,3420.7,3420.5,0.58687068]
[1732397549140,0.04373221,3420.6,3420.5,0.58687068]
[1732397549810,0.04373221,3420.6,3420.5,1.46393068]
[1732397550060,0.04373221,3420.6,3420.5,1.78092914]
[1732397551056,0.04373221,3420.6,3420.5,0.90386914]
[1732397552057,0.04373221,3420.6,3420.5,1.78092914]
[1732397552258,0.04373221,3420.6,3420.5,2.57482914]
[1732397552453,2.9225,3421.8,3421.1,0.87689]
[1732397552766,2.9225,3421.8,3420.7,0.7939]
[1732397552767,2.9225,3421.8,3421.2,0.8131]
[1732397553050,2.92252,3421.7,3421.2,0.8131]
[1732397553228,2.92241,3421.9,3421.2,1.40897556]
[1732397553432,2.92243,3421.8,3421.2,1.40897556]
[1732397553817,0.292214,3422.1,3421.5,0.87678]
[1732397554018,2.92232,3422.0,3421.4,0.87682]
[1732397554620,2.92132,3423.1,3421.5,0.8131]
[1732397554825,2.92218,3422.1,3421.5,1.6899]
[1732397555024,0.292218,3422.0,3421.5,1.6899]
[1732397555357,2.97003786,3422.1,3421.5,1.6899]
[1732397555358,2.92225,3422.1,3421.5,0.8131]
[1732397555557,2.92227,3422.0,3421.5,0.8131]
[1732397556919,2.92182,3422.6,3421.5,0.8131]
[1732397557270,2.92261,3421.6,3421.2,1.70057556]
[1732397557565,2.92261,3421.6,3421.2,1.40897556]
[1732397558339,2.92246,3421.8,3421.2,1.40897556]
[1732397558865,2.92229,3422.0,3421.3,0.87685]
[1732397559563,2.92229,3422.0,3421.4,0.87683]
[1732397559867,2.92229,3422.0,3421.2,2.28585556]
[1732397560221,2.92229,3422.0,3421.3,0.87683]
[1732397560423,2.92226,3422.0,3421.4,0.87681]
[1732397560752,2.92215,3422.2,3421.5,0.8768]
[1732397561127,0.0546947,3422.1,3421.6,0.8196]
[1732397561544,2.9768747,3422.1,3421.6,0.8196]
[1732397563833,0.0546947,3422.1,3421.6,1.69636]
[1732397564067,2.92207,3422.3,3421.6,0.87676]
[1732397564234,0.05478093,3422.2,3421.7,1.69634]
[1732397564467,2.92192,3422.4,3421.9,0.8196]
[1732397564672,2.97691715,3422.3,3421.9,0.8196]
[1732397564867,2.9221,3422.2,3421.9,0.8196]
[1732397565180,0.0546947,3422.1,3421.9,0.8196]
[1732397566860,2.9768847,3422.1,3421.9,0.8196]
[1732397567580,0.0546947,3422.1,3421.9,0.8196]
[1732397567759,2.92195,3422.4,3421.9,0.8196]
[1732397567760,2.92211,3422.2,3421.9,0.8196]
[1732397567963,2.9770547,3422.1,3421.9,0.8196]
[1732397568157,2.9770547,3422.1,3421.5,0.2916]
[1732397568158,0.0548747,3422.1,3420.9,0.8322]
[1732397568397,3.12495919,3422.0,3420.1,0.8322]
[1732397568611,2.92295,3421.2,3421.1,0.5719253]
[1732397573115,2.92285,3421.4,3421.1,0.5719253]
[1732397573274,2.92286,3421.3,3421.1,0.5719253]
[1732397573480,2.92295,3421.2,3421.1,0.5719253]
[1732397578912,2.92278,3421.4,3421.1,0.5719253]
[1732397579070,2.92295,3421.2,3421.1,0.5719253]
[1732397587771,2.92295,3421.2,3421.1,1.3356253]
[1732397589616,2.92295,3421.2,3420.7,2.52082774]
[1732397589617,2.92329,3420.8,3420.7,2.52082774]
[1732397590895,2.92319,3421.0,3420.7,2.52082774]
[1732397591216,2.92321,3420.9,3420.7,2.52082774]
[1732397592431,2.92328,3420.9,3420.7,2.52082774]
[1732397592722,2.92329,3420.8,3420.7,2.52082774]
[1732397594477,2.92339,3420.7,3420.5,0.58707683]
[1732397595189,2.92339,3420.7,3420.5,3.10790457]
[1732397595597,2.92344,3420.7,3420.5,3.10790457]
[1732397595993,3.0,3421.9,3420.5,3.10790457]
[1732397595994,2.92323,3420.9,3420.5,3.10790457]
[1732397596199,2.92343,3420.7,3420.5,0.58707683]
[1732397596409,2.92281,3421.4,3420.5,0.58707683]
[1732397596713,2.92331,3420.8,3420.5,0.58707683]
[1732397596916,2.92338,3420.7,3420.5,0.81546751]
[1732397597826,2.92331,3420.8,3420.5,0.81546751]
[1732397598123,2.92331,3420.8,3420.5,0.58707683]
[1732397598820,2.92312,3421.0,3420.5,0.58707683]
[1732397599121,2.92317,3421.0,3420.5,0.58707683]
[1732397599429,2.92321,3420.9,3420.5,0.58707683]
[1732397599725,5.84556,3421.4,3420.6,0.22838768]
[1732397599930,2.92276,3421.5,3420.6,0.22838768]
[1732397600131,0.95966926,3421.7,3420.7,0.7857]
[1732397600335,2.92296,3421.2,3420.8,0.16011645]
[1732397600499,2.92294,3421.3,3420.8,0.16011645]
[1732397600824,2.92294,3421.3,3420.9,0.20512341]
[1732397601519,2.92278,3421.4,3421.0,0.7857]
[1732397601724,2.92278,3421.4,3421.0,1.11129405]
[1732397602951,2.92271,3421.5,3421.0,1.11129405]
[1732397603304,2.92254,3421.7,3421.0,1.98821405]
[1732397603504,2.92254,3421.7,3421.1,0.30252805]
[1732397604142,2.92263,3421.6,3421.1,0.30252805]
[1732397604302,2.92263,3421.6,3421.2,0.7857]
[1732397606034,2.92256,3421.7,3421.2,0.7857]
[1732397607921,2.92213,3422.2,3421.2,0.7857]
[1732397608114,2.92257,3421.7,3421.2,0.7857]
[1732397609000,2.92238,3421.9,3421.2,1.66257]
[1732397609663,2.92234,3422.0,3421.2,1.66257]
[1732397609836,2.92258,3421.7,3421.2,0.7857]
[1732397610154,2.92258,3421.7,3421.2,0.95196]
[1732397610961,2.92258,3421.7,3421.4,0.58137872]
[1732397611630,2.92235,3421.9,3421.4,0.58137872]
[1732397611631,2.92243,3421.8,3421.4,0.58137872]
[1732397612555,2.92267,3421.6,3421.4,0.58137872]
[1732397612757,0.292195,3422.4,3421.4,0.58137872]
[1732397612758,2.92249,3421.8,3421.4,0.58137872]
[1732397613628,5.92165,3422.8,3421.4,1.45818872]
[1732397613827,2.92219,3422.1,3421.5,1.63809]
[1732397614234,2.92241,3421.9,3421.5,0.7613]
[1732397614449,2.97692853,3422.0,3421.5,0.7613]
[1732397614631,2.92236,3421.9,3421.6,0.2916]
[1732397614832,2.92236,3421.9,3421.5,0.7613]
[1732397616024,2.97020819,3421.9,3421.5,0.7613]
[1732397616261,0.04784819,3421.9,3421.5,0.7613]
[1732397616467,0.04784819,3421.9,3421.8,1.68293]
[1732397616758,2.92178,3422.6,3421.9,0.87668]
[1732397617173,2.92178,3422.6,3422.0,0.87667]
[1732397617373,2.92116,3423.3,3422.0,0.87667]
[1732397617539,2.92168,3422.7,3422.0,0.87667]
[1732397617872,2.92168,3422.7,3422.1,0.8059]
[1732397618059,2.92152,3422.9,3422.1,0.8059]
[1732397618280,2.92183,3422.6,3422.1,0.8059]
[1732397618436,2.92159,3422.8,3422.1,0.8059]
[1732397619081,2.92159,3422.8,3422.2,0.8766]
[1732397619658,2.92167,3422.7,3422.1,0.8059]
[1732397619974,2.92167,3422.7,3422.1,1.68255]
[1732397620132,0.04837633,3422.6,3422.2,0.87662]
[1732397620477,2.92159,3422.8,3422.2,0.87662]
[1732397620671,0.04830089,3422.5,3422.2,0.87662]
[1732397620839,3.592115,3423.3,3422.2,0.87662]
[1732397621033,2.92165,3422.8,3422.2,0.87662]
[1732397621271,0.04845176,3422.7,3422.2,1.44577833]
[1732397621473,0.04845176,3422.7,3422.3,0.31283383]
[1732397621676,0.04845176,3422.7,3422.4,0.8059]
[1732397621833,2.92156,3422.9,3422.4,0.8059]
[1732397622038,2.92175,3422.6,3422.4,0.8059]
[1732397622367,0.04830089,3422.5,3422.4,0.8059]
[1732397622552,0.04830089,3422.5,3422.4,1.03107083]
[1732397623485,2.92168,3422.7,3422.4,1.03107083]
[1732397623677,2.92168,3422.7,3422.2,0.56915833]
[1732397623678,0.04837633,3422.6,3422.2,0.56915833]
[1732397624668,0.04837633,3422.6,3422.3,0.2916]
[1732397624888,2.97012633,3422.6,3422.2,0.56915833]
[1732397625055,0.04837633,3422.6,3422.3,0.3478909]
[1732397625582,0.04830089,3422.5,3422.3,0.3478909]
[1732397625947,2.92167,3422.7,3422.3,0.3478909]
[1732397626146,0.04837633,3422.6,3422.3,0.3478909]
[1732397626576,2.92168,3422.7,3422.3,0.3478909]
[1732397626876,0.04830089,3422.5,3422.1,0.8059]
[1732397627080,0.04822545,3422.4,3422.1,0.8059]
[1732397627282,0.04822545,3422.4,3422.1,1.18454607]
[1732397627444,0.04815001,3422.3,3422.1,1.38072025]
[1732397627844,2.92192,3422.4,3422.1,1.38072025]
[1732397628324,0.04815001,3422.3,3421.4,0.7751]
[1732397628601,2.92236,3421.9,3421.6,0.57808693]
[1732397629045,2.97020819,3421.9,3421.6,0.57808693]
[1732397630077,0.04784819,3421.9,3421.6,0.57808693]
[1732397630274,0.04784819,3421.9,3421.7,0.7751]
[1732397630461,2.92219,3422.1,3421.8,0.34571676]
[1732397630986,0.04800809,3422.0,3421.8,0.34571676]
[1732397632060,2.92139,3423.1,3422.1,0.87663]
[1732397632265,2.92107,3423.4,3421.9,1.6518]
[1732397632266,2.92158,3422.8,3422.2,2.87891066]
[1732397632467,4.14803066,3423.7,3422.3,0.7751]
[1732397632468,2.9215,3422.9,3422.3,0.7751]
[1732397632887,2.9215,3422.9,3422.3,1.6517]
[1732397633098,2.9215,3422.9,3422.4,0.28788907]
[1732397633329,2.92141,3423.0,3422.5,0.7794]
[1732397633449,2.92127,3423.2,3422.5,0.7794]
[1732397633647,2.92127,3423.2,3422.5,1.65594]
[1732397634009,2.92132,3423.1,3422.5,1.65594]
[1732397634285,2.92132,3423.1,3422.5,1.821534]
[1732397635689,2.921,3423.5,3422.8,0.7503]
[1732397635899,2.92123,3423.3,3422.8,0.7503]
[1732397636905,2.92131,3423.2,3422.8,0.7503]
[1732397637498,2.92139,3423.1,3422.8,0.7503]
[1732397639303,5.84238,3423.3,3422.8,0.7503]
[1732397639805,2.92069,3423.9,3422.8,0.7503]
[1732397639974,2.92125,3423.2,3422.8,0.7503]
[1732397641665,2.92126,3423.2,3422.8,0.7503]
[1732397641863,2.92141,3423.0,3422.8,0.7503]
[1732397643844,2.92141,3423.0,3422.5,0.7503]
[1732397644545,0.32368658,3423.9,3422.5,0.7503]
[1732397644729,2.9209,3423.6,3422.5,0.7503]
[1732397644937,2.92198,3422.4,3422.2,0.7503]
[1732397645104,2.92207,3422.3,3421.7,1.62705]
[1732397645310,2.92207,3422.3,3421.7,1.99384699]
[1732397645844,2.9221,3422.2,3421.7,1.99384699]
[1732397646142,2.92198,3422.4,3422.0,0.57271843]
[1732397646303,2.92177,3422.6,3422.0,0.57271843]
[1732397646507,2.92201,3422.3,3422.0,0.57271843]
[1732397646819,2.92201,3422.3,3422.0,0.87722544]
[1732397647423,2.92224,3422.1,3421.8,0.47850469]
[1732397647645,2.92224,3422.1,3421.8,1.06043888]
[1732397647856,2.92202,3422.3,3421.8,1.06043888]
[1732397648068,2.92227,3422.0,3421.8,1.06043888]
[1732397648380,2.92202,3422.3,3421.9,0.46019388]
[1732397648563,2.92167,3422.7,3421.9,1.24669388]
[1732397648864,2.92185,3422.5,3421.9,1.6632]
[1732397649164,2.92185,3422.5,3422.0,0.7865]